[Event "Vienna Championship-B 2022"]
[Site "Vienna"]
[Date "2022.09.22"]
[Round "6.12"]
[White "Kunschek, Horst"]
[Black "Kern, Julian"]
[Result "1/2-1/2"]
[ECO "B55"]
[WhiteElo "1743"]
[BlackElo "1694"]
[Annotator "NA RC COMBH"]
[PlyCount "96"]
[EventDate "2022.09.17"]
[EventType "swiss"]
[EventCountry "AUT"]
[SourceTitle "playchess.com"]
[Source "ChessBase"]
[SourceQuality "1"]
[TimeControl "5400+30"]

1. e4 {[%emt 0:00:04]} c5 {[%emt 0:00:06]} 2. Nf3 {[%emt 0:00:06]} d6 {[%emt 0:00:09]} 3. d4 {[%emt 0:00:08]} cxd4 {[%emt 0:00:09]} 4. Nxd4 {[%emt 0:00:10]} Nf6 {[%emt 0:00:14]} 5. Bd3 {[%emt 0:00:10]} e5 {[%emt 0:02:12]} 6. Nf3 {[%emt 0:00:11]} d5 {[%emt 0:02:43]} 7. Nxe5 {[%emt 0:01:17]} dxe4 {[%emt 0:00:54]} 8. Bb5+ {[%emt 0:00:16]} Bd7 {[%emt 0:01:10]} 9. Bxd7+ {[%emt 0:00:22]} Nbxd7 {[%emt 0:00:31]} 10. Nxd7 {[%emt 0:00:12]} Qxd7 {[%emt 0:00:53]} 11. O-O {[%emt 0:00:14]} Bb4 {[%emt 0:06:50]} 12. c3 {[%emt 0:00:28]} Be7 {[%emt 0:00:38]} 13. Qxd7+ {[%emt 0:00:30]} Nxd7 {[%emt 0:00:19]} 14. Re1 {[%emt 0:00:29]} f5 {[%emt 0:01:23]} 15. Be3 {[%emt 0:00:28]} Ne5 {[%emt 0:03:46]} 16. Bd4 {[%emt 1:33:25]} Nd3 {[%emt 1:16:33]} 17. Re2 {[%emt 0:00:00]} Rg8 {[%emt 0:00:00]} 18. Nd2 {[%emt 0:00:00]} a6 {[%emt 0:00:00]} 19. f3 {[%emt 0:00:00]} exf3 {[%emt 0:00:00]} 20. Nxf3 {[%emt 0:00:00]} Kf8 {[%emt 0:00:00]} 21. g3 {[%emt 0:00:00]} Re8 {[%emt 0:00:00]} 22. Rd2 {[%emt 0:00:00]} Nc5 {[%emt 0:00:00]} 23. Re1 {[%emt 0:00:00]} Ne4 {[%emt 0:00:00]} 24. Rde2 {[%emt 0:00:00]} Bf6 {[%emt 0:00:00]} 25. Bxf6 {[%emt 0:00:00]} Nxf6 {[%emt 0:00:00]} 26. Rxe8+ {[%emt 0:00:00]} Nxe8 {[%emt 0:00:00]} 27. Ng5 {[%emt 0:00:00]} Nf6 {[%emt 0:00:00]} 28. Ne6+ {[%emt 0:00:00]} Kf7 {[%emt 0:00:00]} 29. Nc5 {[%emt 0:00:00]} Rd8 {[%emt 0:00:00]} 30. Nxb7 {[%emt 0:00:00]} Rd2 {[%emt 0:00:00]} 31. Rf1 {[%emt 0:00:00]} g6 {[%emt 0:00:00]} 32. Rf2 {[%emt 0:00:00]} Rd1+ {[%emt 0:00:00]} 33. Kg2 {[%emt 0:00:00]} Ne4 {[%emt 0:00:00]} 34. Rc2 {[%emt 0:00:00]} Ke6 {[%emt 0:00:00]} 35. c4 {[%emt 0:00:00]} Kd7 {[%emt 0:00:00]} 36. c5 {[%emt 0:00:00]} Kc6 {[%emt 0:00:00]} 37. Na5+ {[%emt 0:00:00]} Kb5 {[%emt 0:00:00]} 38. Nb3 {[%emt 0:00:00]} Kc6 {[%emt 0:00:00]} 39. Kf3 {[%emt 0:00:00]} Rd5 {[%emt 0:00:00]} 40. Kf4 {[%emt 0:00:00]} g5+ {[%emt 0:00:00]} 41. Ke3 {[%emt 0:00:00]} Nxc5 {[%emt 0:00:00]} 42. Nxc5 {[%emt 0:00:00]} Rxc5 {[%emt 0:00:00]} 43. Rd2 {[%emt 0:00:00]} Re5+ {[%emt 0:00:00]} 44. Kf3 {[%emt 0:00:00]} Re8 {[%emt 0:00:00]} 45. h4 {[%emt 0:00:00]} h6 {[%emt 0:00:00]} 46. Rd3 {[%emt 0:00:00]} Rb8 {[%emt 0:00:00]} 47. Rd2 {[%emt 0:00:00]} Re8 {[%emt 0:00:00]} 48. Rd3 {[%emt 0:00:00]} Rb8 {[%emt 0:00:00]} 1/2-1/2

[Event "Vienna Championship-B 2022"]
[Site "Vienna"]
[Date "2022.09.23"]
[Round "7.1"]
[White "Bonk, Andras"]
[Black "Deak-Sala, Emilia"]
[Result "1/2-1/2"]
[ECO "B20"]
[WhiteElo "2175"]
[BlackElo "1787"]
[Annotator "TA"]
[PlyCount "43"]
[EventDate "2022.09.17"]
[EventType "swiss"]
[EventCountry "AUT"]
[SourceTitle "playchess.com"]
[Source "ChessBase"]
[SourceQuality "1"]
[TimeControl "5400+30"]

{[%evp 19,43,-13,-5,-27,-28,-27,-27,-34,-28,-38,-54,-54,-48,-127,38,36,40,38,20,29,26,0,3,0,33,0]} 1. e4 {[%emt 0:00:03]} c5 {[%emt 0:00:23]} 2. Ne2 {[%emt 0:00:09]} Nc6 {[%emt 0:00:04]} 3. g3 {[%emt 0:00:06]} g6 {[%emt 0:00:04]} 4. Bg2 {[%emt 0:00:04]} Bg7 {[%emt 0:00:03]} 5. c3 {[%emt 0:00:05]} e6 {[%emt 0:00:10]} 6. d4 {[%emt 0:00:54]} cxd4 {[%emt 0:00:06]} 7. cxd4 {[%emt 0:04:26]} d5 {[%emt 0:00:10]} 8. e5 {[%emt 0:03:29]} Nge7 {[%emt 0:01:06][%cal Bg8e7,Be7f5,Bf5h4][%mdl 32]} 9. Nbc3 {[%emt 0:00:25]} Nf5 {[%emt 0:04:06]} 10. O-O {[%emt 0:01:29]} O-O {[%emt 0:02:27]} 11. g4 {[%emt 0:03:12] B20: Sicilian: Unusual White 2nd moves.} Nh4 {[%emt 0:02:56] [#]} 12. Bh1 $146 {[%emt 0:00:18]} ({Predecessor:} 12. Bf4 f6 13. exf6 Qxf6 14. Nb5 Nxg2 15. g5 Qf5 16. Kxg2 e5 17. dxe5 Qg4+ {0-1 (17) Schmid,R (2191)-Hoffmann,R (2084) Bad Homburg 2010}) 12... f6 {[%emt 0:06:10]} 13. f4 {[%emt 0:01:43] Black has an edge.} g5 {[%emt 0:25:03]} 14. exf6 {[%emt 0:07:35]} Qxf6 {[%emt 0:02:19]} 15. Be3 {[%emt 0:12:58]} gxf4 {[%emt 0:06:50]} 16. Rxf4 {[%emt 0:01:30]} (16. Nxf4 $15 Qxd4 17. Bxd4 Bxd4+ 18. Qxd4 (18. Rf2 $2 Rxf4 19. h3 Rxf2 $19) 18... Nxd4 19. Nh5) 16... Qg6 $2 {[%emt 0:10:41] [#]} (16... Bh6 $17 17. Rc1 (17. Rxf6 $2 Bxe3+ 18. Kf1 Rxf6+ 19. Ke1 Bd7 $19) 17... Bxf4 18. Nxf4 Bd7) 17. Rxf8+ $14 {[%emt 0:02:20]} Bxf8 {[%emt 0:00:50]} 18. Nf4 $36 {[%emt 0:05:14][%mdl 2048] White is pushing.} Qg7 {[%emt 0:00:16]} 19. Nh5 {[%emt 0:09:03]} Qg6 {[%emt 0:01:46]} 20. Nf4 {[%emt 0:14:44]} Qg7 {[%emt 0:00:26]} 21. Nh5 {[%emt 0:00:53]} Qg6 {[%emt 0:00:05]} 22. Nf4 {[%emt 0:04:10] Weighted Error Value: White=0.13 (very precise) /Black=0.19 (very precise)} 1/2-1/2

[Event "Vienna Championship-B 2022"]
[Site "Vienna"]
[Date "2022.09.23"]
[Round "7.2"]
[White "Wagner, Leopold Franziskus"]
[Black "Obenaus, Paul"]
[Result "1-0"]
[ECO "E32"]
[WhiteElo "2201"]
[BlackElo "1825"]
[Annotator "TA"]
[PlyCount "69"]
[EventDate "2022.09.17"]
[EventType "swiss"]
[EventCountry "AUT"]
[SourceTitle "playchess.com"]
[Source "ChessBase"]
[SourceQuality "1"]
[TimeControl "5400+30"]

{[%evp 13,69,0,0,0,0,0,0,0,0,-6,18,-66,-67,-83,4,11,12,5,88,73,55,60,73,52,52,28,25,-47,-29,-57,-62,-66,-56,-61,9,0,12,14,58,41,81,87,137,83,158,144,167,158,152,140,190,181,402,379,409,401,384,380]} 1. d4 {[%emt 0:00:01]} Nf6 {[%emt 0:00:06]} 2. c4 {[%emt 0:00:07]} e6 {[%emt 0:00:16]} 3. Nc3 {[%emt 0:00:03]} Bb4 {[%emt 0:00:26]} 4. Qc2 {[%emt 0:00:03]} O-O {[%emt 0:00:53]} 5. e4 {[%emt 0:00:03]} d5 {[%emt 0:01:17]} 6. e5 {[%emt 0:00:01]} Ne4 {[%emt 0:00:31]} 7. Bd3 {[%emt 0:00:03]} c5 $1 {[%emt 0:01:21]} 8. Nf3 {[%emt 0:00:06] Strongly threatening 0-0. E32: Nimzo-Indian: Classical (4 Qc2): 4...0-0.} cxd4 {[%emt 0:02:25]} 9. Nxd4 {[%emt 0:00:04]} Nd7 {[%emt 0:00:07]} 10. Bf4 {[%emt 0:00:13] The position is equal.} Qh4 {[%emt 0:01:17]} 11. g3 {[%emt 0:00:07]} Qh5 {[%emt 0:00:13]} 12. Bxe4 {[%emt 0:04:33]} (12. O-O $11) 12... dxe4 $15 {[%emt 0:04:08]} 13. Qxe4 {[%emt 0:00:31]} Nc5 {[%emt 0:01:51]} (13... Bxc3+ $17 14. bxc3 Nc5) 14. Qe2 $11 {[%emt 0:07:47] [#]} Qh3 $146 {[%emt 0:03:20]} ({Predecessor:} 14... Bxc3+ 15. bxc3 Qh3 16. Qf1 Qxf1+ 17. Kxf1 b6 18. Ke2 Ba6 19. Nb5 Rfc8 20. Nd6 Rc6 {0-1 (58) Mikrut,D (2390)-Sadzikowski,D (2522) Warsaw 2020}) 15. O-O-O {[%emt 0:03:02] With the idea Ncb5.} a6 {[%emt 0:11:49] Prevents Ncb5.} (15... Bxc3 $11 {keeps the balance.} 16. bxc3 b6) 16. Ne4 {[%emt 0:02:13]} Nxe4 {[%emt 0:00:57]} 17. Qxe4 {[%emt 0:01:33]} Rb8 $1 {[%emt 0:01:51]} 18. Bd2 {[%emt 0:07:17] White has more active pieces. The black rooks are badly placed.} Bc5 {[%emt 0:03:45]} 19. Nb3 {[%emt 0:03:48]} Be7 {[%emt 0:03:33]} 20. Kb1 {[%emt 0:10:44]} (20. Na5 $11) 20... b6 $1 $15 {[%emt 0:02:37][%mdl 1024] Black has compensation.} 21. Rhg1 {[%emt 0:09:43]} Bb7 {[%emt 0:00:55]} 22. Qe3 {[%emt 0:00:20]} Rfc8 {[%emt 0:02:58]} 23. Rc1 {[%emt 0:02:16]} Qg4 {[%emt 0:11:06]} (23... Qxh2 $15 24. Ka1 {[#]} Rxc4 $1) 24. f4 {[%emt 0:01:05]} Rd8 {[%emt 0:02:35]} 25. Ka1 {[%emt 0:00:46]} Ba8 {[%emt 0:01:42]} 26. Bc3 {[%emt 0:01:06][%cal Bd2c3,Bc3d4,Bd4b6,Bb6c7,Bc7e5][%mdl 32]} Qg6 {[%emt 0:05:31]} 27. Bd4 {[%emt 0:01:12]} Rd7 {[%emt 0:03:36]} (27... a5 $142) 28. g4 {[%emt 0:02:48]} (28. c5 $142) 28... Qe4 {[%emt 0:04:55]} ({Better is} 28... b5) 29. Bxb6 $16 {[%emt 0:00:47]} Rd3 {[%emt 0:00:30]} 30. Qxe4 {[%emt 0:00:14]} Bxe4 {[%emt 0:00:07]} 31. c5 {[%emt 0:00:08]} f6 {[%emt 0:01:42]} (31... Rc8 $16 32. Rce1 Bf3) 32. Bc7 $18 {[%emt 0:02:34]} Rb5 {[%emt 0:00:18] [#]} (32... Rc8) 33. Rg3 {[%emt 0:05:28] White is winning.} Rxg3 {[%emt 0:02:01]} 34. hxg3 {[%emt 0:00:02]} fxe5 {[%emt 0:00:25]} 35. Bxe5 {[%emt 0:00:25] Weighted Error Value: White=0.19 (very precise) /Black=0.29 (precise)} 1-0

[Event "Vienna Championship-B 2022"]
[Site "Vienna"]
[Date "2022.09.23"]
[Round "7.6"]
[White "Wickramasinghe, Nathaniel"]
[Black "Schwabeneder, Alois"]
[Result "1/2-1/2"]
[ECO "B17"]
[WhiteElo "1760"]
[BlackElo "1911"]
[Annotator "TA"]
[PlyCount "94"]
[EventDate "2022.09.17"]
[EventType "swiss"]
[EventCountry "AUT"]
[SourceTitle "playchess.com"]
[Source "ChessBase"]
[SourceQuality "1"]
[TimeControl "5400+30"]

{[%evp 19,94,12,17,0,0,0,11,-12,35,0,-7,-11,0,0,16,0,0,0,0,0,0,-14,-9,-14,6,14,12,0,26,0,0,0,0,0,30,25,32,0,2,0,0,-15,0,0,0,-14,-18,-6,0,-45,0,-61,0,0,0,0,0,0,0,0,52,0,41,0,0,0,38,0,0,0,0,0,0,-8,0,-8,0]} 1. e4 {[%emt 0:00:42]} c6 {[%emt 0:00:32]} 2. d4 {[%emt 0:00:06]} d5 {[%emt 0:00:05]} 3. Nc3 {[%emt 0:00:05]} dxe4 {[%emt 0:00:51]} 4. Nxe4 {[%emt 0:00:08]} Nd7 {[%emt 0:00:33]} 5. Nf3 {[%emt 0:00:19]} Ngf6 {[%emt 0:00:31]} 6. Bd3 {[%emt 0:00:12]} Nxe4 {[%emt 0:00:27]} 7. Bxe4 {[%emt 0:00:08]} Nf6 {[%emt 0:00:06]} 8. Bd3 {[%emt 0:00:12]} Bg4 {[%emt 0:00:11]} 9. c3 {[%emt 0:01:23]} e6 {[%emt 0:00:25]} 10. h3 $1 {[%emt 0:00:25] 10.h3 scores better than 10.0-0.} Bh5 {[%emt 0:00:09]} 11. g4 {[%emt 0:01:15] B17: Caro-Kann: Modern Line (4...Nd7).} Bg6 {[%emt 0:00:16]} 12. Ne5 {[%emt 0:02:03]} Qd5 {[%emt 0:02:55]} 13. f3 {[%emt 0:00:25] [#]} Nd7 $146 {[%emt 0:05:10]} (13... Bxd3 $11 14. Qxd3 Rd8) ({Predecessor:} 13... Bxd3 14. Qxd3 Rd8 15. Kf2 Qxe5 16. dxe5 Rxd3 17. exf6 gxf6 18. Be3 b6 19. a4 Bc5 20. Bxc5 bxc5 {½-½ (53) Ivanovic,Z (2101)-Milic,I (1980) Jagodina 2013}) 14. Nxg6 {[%emt 0:00:41]} (14. Bc4 {seems wilder.} Qa5 15. Bf4 Be7 16. Nxd7 Kxd7 17. Kf2) 14... hxg6 {[%emt 0:00:04]} 15. Bf4 {[%emt 0:02:08]} Be7 {[%emt 0:00:37]} 16. Qe2 {[%emt 0:04:43] Inhibits e5.} Bh4+ {[%emt 0:04:21]} 17. Kd2 {[%emt 0:00:37]} Bg5 {[%emt 0:02:47]} 18. Bxg5 {[%emt 0:02:00]} Qxg5+ {[%emt 0:00:08]} 19. Qe3 {[%emt 0:00:08]} Qd5 {[%emt 0:02:38]} 20. f4 {[%emt 0:05:10] Against e5} O-O-O {[%emt 0:02:32]} 21. Kc2 {[%emt 0:01:28]} (21. Be4 {looks sharper.} Qb5 22. Kc2 c5 23. Rad1) 21... Kb8 {[%emt 0:01:24]} 22. Be4 {[%emt 0:02:48]} Qd6 {[%emt 0:00:43]} 23. a4 {[%emt 0:01:52]} Rc8 {[%emt 0:06:23]} 24. b4 {[%emt 0:01:30]} Nf6 {[%emt 0:04:00]} 25. Bf3 {[%emt 0:02:57]} Nd5 {[%emt 0:01:10]} 26. Qe5 {[%emt 0:02:02]} Rhd8 {[%emt 0:01:13]} 27. Bxd5 {[%emt 0:00:26]} cxd5 {[%emt 0:01:18]} 28. Kd3 {[%emt 0:01:12]} Rc4 {[%emt 0:00:46]} 29. Ra3 {[%emt 0:01:03]} Kc7 {[%emt 0:02:58]} 30. Rf1 {[%emt 0:01:29]} f6 {[%emt 0:00:50]} 31. Qxd6+ {[%emt 0:01:40]} Kxd6 $11 {[%emt 0:00:09][%mdl 4096] Endgame KRR-KRR} 32. Ra2 {[%emt 0:01:30]} Rdc8 {[%emt 0:01:12]} 33. Rc2 {[%emt 0:00:49]} b6 {[%emt 0:05:57]} 34. h4 {[%emt 0:01:44]} Rh8 {[%emt 0:02:19]} 35. Rh2 {[%emt 0:00:21]} (35. Re1 $11) 35... a5 {[%emt 0:03:54]} (35... e5 $1 $15 36. fxe5+ fxe5 37. dxe5+ Ke6) 36. Rb1 {[%emt 0:02:25]} axb4 {[%emt 0:03:34]} 37. Rxb4 {[%emt 0:00:18]} Rxb4 {[%emt 0:00:27]} 38. cxb4 {[%emt 0:00:05] KR-KR} Ra8 {[%emt 0:00:38]} 39. Ra2 {[%emt 0:00:07]} Kc6 {[%emt 0:03:18]} ({Black should try} 39... Rh8 $11) 40. b5+ {[%emt 0:02:51]} (40. Kc3 $14) 40... Kd6 {[%emt 0:00:17]} 41. Kc3 {[%emt 0:01:13]} (41. Rc2 $5 {[%cal Rc2c6]}) 41... Rc8+ {[%emt 0:01:32]} 42. Kd3 {[%emt 0:01:25]} Ra8 {[%emt 0:00:17]} 43. Kc3 {[%emt 0:00:14]} (43. Rc2 $5 {[%cal Rc2c6]}) 43... e5 {[%emt 0:07:48] The position is equal.} 44. fxe5+ {[%emt 0:01:11]} fxe5 {[%emt 0:00:17]} 45. dxe5+ {[%emt 0:00:05]} Kxe5 {[%emt 0:00:10]} 46. Kb4 {[%emt 0:00:24]} d4 {[%emt 0:00:55] ...d3 is the strong threat.} 47. a5 {[%emt 0:00:15]} bxa5+ {[%emt 0:06:20] Weighted Error Value: White=0.14 (very precise) /Black=0.13 (very precise)} 1/2-1/2

[Event "Vienna Championship-B 2022"]
[Site "Vienna"]
[Date "2022.09.23"]
[Round "7.7"]
[White "Pavlov, Alexander"]
[Black "Anastasakis, Georgios"]
[Result "1-0"]
[ECO "B92"]
[WhiteElo "1751"]
[BlackElo "1893"]
[Annotator "NA RC COMBH"]
[PlyCount "59"]
[EventDate "2022.09.17"]
[EventType "swiss"]
[EventCountry "AUT"]
[SourceTitle "playchess.com"]
[Source "ChessBase"]
[SourceQuality "1"]
[TimeControl "5400+30"]

1. e4 {[%emt 0:00:01]} c5 {[%emt 0:00:01]} 2. Nf3 {[%emt 0:00:09]} d6 {[%emt 0:00:01]} 3. d4 {[%emt 0:00:09]} cxd4 {[%emt 0:00:01]} 4. Nxd4 {[%emt 0:00:07]} Nf6 {[%emt 0:00:08]} 5. Nc3 {[%emt 0:00:06]} a6 {[%emt 0:00:01]} 6. Be2 {[%emt 0:00:24]} e5 {[%emt 0:00:02]} 7. Nb3 {[%emt 0:00:08]} Be6 {[%emt 0:00:01]} 8. O-O {[%emt 0:01:20]} b5 {[%emt 0:00:16]} 9. a3 {[%emt 0:00:24]} Be7 {[%emt 0:00:07]} 10. Kh1 {[%emt 0:00:09]} O-O {[%emt 0:02:02]} 11. f4 {[%emt 0:00:12]} exf4 {[%emt 0:01:59]} 12. Bxf4 {[%emt 0:00:06]} Nc6 {[%emt 0:00:19]} 13. Qe1 {[%emt 0:02:32]} Rc8 {[%emt 0:09:34]} 14. Qg3 {[%emt 0:01:27]} Kh8 {[%emt 0:02:33]} 15. Rad1 {[%emt 0:01:05]} b4 {[%emt 0:04:19]} 16. axb4 {[%emt 1:30:11]} Nxb4 {[%emt 0:00:03]} 17. Rd2 {[%emt 0:00:00]} Nxc2 {[%emt 0:00:33]} 18. Rxc2 {[%emt 0:00:00]} Bxb3 {[%emt 0:00:03]} 19. Rd2 {[%emt 0:00:00]} Rxc3 {[%emt 0:01:12]} 20. Qxc3 {[%emt 0:00:00]} Nxe4 {[%emt 0:00:02]} 21. Qxb3 {[%emt 0:00:00]} Nxd2 {[%emt 0:00:02]} 22. Bxd2 {[%emt 0:00:00]} Bf6 {[%emt 0:00:25]} 23. Bxa6 {[%emt 0:00:00]} Qa8 {[%emt 0:00:36]} 24. Qa3 {[%emt 0:00:00]} Re8 {[%emt 0:00:54]} 25. Re1 {[%emt 0:00:00]} Be5 {[%emt 0:00:53]} 26. Bb5 {[%emt 0:00:00]} Rb8 {[%emt 0:00:56]} 27. Qxa8 {[%emt 0:00:00]} Rxa8 {[%emt 0:00:01]} 28. b4 {[%emt 0:00:00]} Ra2 {[%emt 0:00:11]} 29. Rd1 {[%emt 0:00:00]} Rb2 {[%emt 0:00:48]} 30. Bc6 {[%emt 0:00:00]} 1-0

[Event "Vienna Championship-B 2022"]
[Site "Vienna"]
[Date "2022.09.23"]
[Round "7.8"]
[White "Stinner, David"]
[Black "Paseka, Christian"]
[Result "1-0"]
[ECO "E89"]
[WhiteElo "1823"]
[BlackElo "1568"]
[Annotator "NA RC COMBH"]
[PlyCount "67"]
[EventDate "2022.09.17"]
[EventType "swiss"]
[EventCountry "AUT"]
[SourceTitle "playchess.com"]
[Source "ChessBase"]
[SourceQuality "1"]
[TimeControl "5400+30"]

1. d4 Nf6 2. c4 d6 3. Nc3 g6 4. e4 Bg7 5. f3 O-O 6. Nge2 c6 7. Be3 Nbd7 8. Qd2 e5 9. d5 cxd5 10. cxd5 b6 11. Ng3 a6 12. Be2 Bb7 13. O-O b5 14. Rfc1 Nb6 15. b3 Nbd7 16. Rc2 Rc8 17. Rac1 Qa5 18. a4 bxa4 19. Nxa4 Qxd2 20. Bxd2 Rxc2 21. Rxc2 Rc8 22. Rxc8+ Bxc8 23. Kf2 Ne8 24. Nf1 f5 25. Ba5 fxe4 26. fxe4 Nef6 27. Bf3 Bf8 28. Nd2 Nc5 29. Nxc5 dxc5 30. Nc4 Nd7 31. Bg4 Bg7 32. Nd6 Nb6 33. Bxc8 Nxc8 34. Nxc8 1-0

[Event "Vienna Championship-B 2022"]
[Site "Vienna"]
[Date "2022.09.23"]
[Round "7.9"]
[White "Hirsch, Adolf Jun."]
[Black "Iehl, William"]
[Result "1-0"]
[ECO "E05"]
[WhiteElo "1731"]
[BlackElo "1781"]
[Annotator "NA RC COMBH"]
[PlyCount "35"]
[EventDate "2022.09.17"]
[EventType "swiss"]
[EventCountry "AUT"]
[SourceTitle "playchess.com"]
[Source "ChessBase"]
[SourceQuality "1"]
[TimeControl "5400+30"]

1. Nf3 {[%emt 0:00:03]} d5 {[%emt 0:00:02]} 2. g3 {[%emt 0:00:07]} Nf6 {[%emt 0:00:31]} 3. Bg2 {[%emt 0:00:05]} e6 {[%emt 0:00:14]} 4. O-O {[%emt 0:00:18]} Be7 {[%emt 0:00:14]} 5. d4 {[%emt 0:00:58]} O-O {[%emt 0:00:28]} 6. c4 {[%emt 0:01:28]} dxc4 {[%emt 0:02:26]} 7. Ne5 {[%emt 0:00:58]} Nbd7 {[%emt 0:05:45]} 8. Nxc4 {[%emt 0:00:16]} c5 {[%emt 0:00:03]} 9. dxc5 {[%emt 0:02:33]} Nxc5 {[%emt 0:00:24]} 10. Nc3 {[%emt 0:00:33]} Qc7 {[%emt 0:00:48]} 11. Bf4 {[%emt 0:00:47]} Qd8 {[%emt 0:01:33]} 12. Qc2 {[%emt 0:03:15]} Bd7 {[%emt 0:04:20]} 13. Rfd1 {[%emt 0:08:49]} Qc8 {[%emt 0:01:39]} 14. Rac1 {[%emt 0:10:28]} Bc6 {[%emt 0:01:31]} 15. Nd6 {[%emt 0:09:06]} Bxd6 {[%emt 0:04:53]} 16. Bxd6 {[%emt 0:00:43]} Bxg2 {[%emt 0:02:30]} 17. Bxf8 {[%emt 0:00:54]} Bc6 {[%emt 0:00:32]} 18. Bxc5 {[%emt 0:00:27]} 1-0

[Event "Vienna Championship-B 2022"]
[Site "Vienna"]
[Date "2022.09.23"]
[Round "7.10"]
[White "Pantelic, Slobodan"]
[Black "Krejcar, Walter"]
[Result "0-1"]
[ECO "D02"]
[WhiteElo "1596"]
[BlackElo "1770"]
[Annotator "NA RC COMBH"]
[PlyCount "86"]
[EventDate "2022.09.17"]
[EventType "swiss"]
[EventCountry "AUT"]
[SourceTitle "playchess.com"]
[Source "ChessBase"]
[SourceQuality "1"]
[TimeControl "5400+30"]

1. Nf3 {[%emt 0:01:43]} d5 {[%emt 0:00:32]} 2. d4 {[%emt 0:00:02]} Nf6 {[%emt 0:00:49]} 3. Bf4 {[%emt 0:00:03]} e6 {[%emt 0:01:44]} 4. h3 {[%emt 0:00:07]} c5 {[%emt 0:00:30]} 5. c3 {[%emt 0:00:04]} Nc6 {[%emt 0:00:49]} 6. e3 {[%emt 0:00:02]} cxd4 {[%emt 0:03:20]} 7. exd4 {[%emt 0:00:08]} Bd6 {[%emt 0:01:26]} 8. Ne5 {[%emt 0:00:07]} Qc7 {[%emt 0:01:12]} 9. Bb5 {[%emt 0:00:03]} O-O {[%emt 0:01:26]} 10. Bxc6 {[%emt 0:00:22]} bxc6 {[%emt 0:00:15]} 11. O-O {[%emt 0:00:04]} Ba6 {[%emt 0:00:35]} 12. Re1 {[%emt 0:00:03]} c5 {[%emt 0:05:43]} 13. Nd2 {[%emt 0:00:06]} Rab8 {[%emt 0:00:29]} 14. b3 {[%emt 0:00:24]} Rbc8 {[%emt 0:06:01]} 15. Rc1 {[%emt 0:01:13]} Nd7 {[%emt 0:09:19]} 16. Nxd7 {[%emt 0:00:15]} Qxd7 {[%emt 0:00:50]} 17. Be5 {[%emt 0:00:34]} cxd4 {[%emt 0:03:09]} 18. cxd4 {[%emt 0:00:23]} Rxc1 {[%emt 0:03:20]} 19. Qxc1 {[%emt 0:00:02]} Rc8 {[%emt 0:00:43]} 20. Qb2 {[%emt 0:00:10]} Bd3 {[%emt 0:05:18]} 21. Nf3 {[%emt 0:00:12]} Rc2 {[%emt 0:01:44]} 22. Qa1 {[%emt 0:00:10]} Bb4 {[%emt 0:01:59]} 23. Rc1 {[%emt 0:00:25]} Bc3 {[%emt 0:03:44]} 24. Qb1 {[%emt 0:00:04]} Rd2 {[%emt 0:04:42]} 25. Nxd2 {[%emt 0:00:02]} Bxb1 {[%emt 0:00:10]} 26. Nxb1 {[%emt 0:00:15]} Ba5 {[%emt 0:00:43]} 27. Na3 {[%emt 0:00:46]} f6 {[%emt 0:00:16]} 28. Bg3 {[%emt 0:00:46]} Bb6 {[%emt 0:00:15]} 29. Nc2 {[%emt 0:00:39]} Qc8 {[%emt 0:01:24]} 30. Bf4 {[%emt 0:00:06]} Qa6 {[%emt 0:00:36]} 31. Nb4 {[%emt 0:00:06]} Qa3 {[%emt 0:03:47]} 32. Nc6 {[%emt 0:02:05]} Qxa2 {[%emt 0:01:35]} 33. b4 {[%emt 0:00:18]} Qb2 {[%emt 0:01:36]} 34. Be3 {[%emt 0:00:09]} e5 {[%emt 0:01:00]} 35. Ne7+ {[%emt 0:01:37]} Kf7 {[%emt 0:00:48]} 36. Nxd5 {[%emt 0:00:08]} exd4 {[%emt 0:01:02]} 37. Nxb6 {[%emt 1:35:17]} axb6 {[%emt 0:03:07]} 38. Rc7+ {[%emt 0:00:00]} Kg6 {[%emt 0:00:12]} 39. Bf4 {[%emt 0:00:00]} Qxb4 {[%emt 0:00:28]} 40. g3 {[%emt 0:00:00]} d3 {[%emt 0:02:11]} 41. Rd7 {[%emt 0:00:00]} Qe4 {[%emt 0:01:54]} 42. Be3 {[%emt 0:00:00]} b5 {[%emt 0:00:25]} 43. Rd4 {[%emt 0:00:00]} Qxd4 {[%emt 0:00:42]} 0-1